bitfinex-derivatives/quotes_SOLF0:USTF0_20241218
["timestamp","ask_amount","ask_price","bid_price","bid_amount"]
[1734555520946,34.66695769,207.14,206.9,4.808]
[1734555521141,34.66695769,207.05,206.95,2.4175]
[1734555521338,34.66695769,207.05,206.93,5.66753757]
[1734555521551,5.91000851,207.19,206.94,34.66695769]
[1734555521742,34.66695769,207.14,206.95,0.8880501]
[1734555522047,34.66695769,207.14,206.95,7.0474501]
[1734555522245,34.66695769,207.09,206.96,0.8880501]
[1734555522546,34.66695769,207.15,206.97,0.88788108]
[1734555522741,34.66695769,207.07,206.98,6.3822]
[1734555522949,34.66695769,207.07,206.93,5.66753757]
[1734555523345,2.4164,207.06,206.93,5.66753757]
[1734555523742,2.4164,207.06,206.98,2.4172]
[1734555524040,34.66695769,207.07,206.93,5.66753757]
[1734555524647,34.66695769,207.11,206.94,0.88800326]
[1734555524847,34.66695769,207.11,206.95,34.66695769]
[1734555525042,34.66695769,207.11,206.93,5.66753757]
[1734555525248,34.66695769,207.16,206.94,0.88802748]
[1734555525446,34.66695769,207.16,206.98,34.66695769]
[1734555525646,34.66695769,207.12,206.99,3.16]
[1734555525946,34.66695769,207.12,206.93,5.66753757]
[1734555526150,37.08335769,207.05,206.91,2.418]
[1734555526345,34.66695769,207.05,206.91,3.0054]
[1734555528042,34.66695769,207.1,206.91,3.0054]
[1734555528250,34.66695769,207.02,206.9,5.80490134]
[1734555528448,34.66695769,207.1,206.9,5.80490134]
[1734555528645,34.66695769,207.05,206.66,7.2629]
[1734555528851,37.08385769,207.01,206.92,2.4178]
[1734555529052,34.66695769,207.01,206.88,5.86638917]
[1734555529648,37.08385769,207.01,206.88,5.86638917]
[1734555529845,4.8286,207.23,206.9,34.66695769]
[1734555530053,34.66695769,207.06,206.9,34.66695769]
[1734555530244,34.66695769,207.06,206.88,5.86638917]
[1734555530645,2.4163,207.06,206.94,2.4176]
[1734555530851,34.66695769,207.08,206.88,5.86638917]
[1734555531049,5.92963708,207.09,206.88,5.86638917]
[1734555531050,34.66695769,207.04,206.88,5.86638917]
[1734555531853,34.66695769,207.0,206.88,5.86638917]
[1734555532248,34.66695769,207.04,206.88,5.86638917]
[1734555532951,34.66695769,207.04,206.96,2.4174]
[1734555533849,5.92963708,207.09,206.88,5.86638917]
[1734555533850,5.92963708,207.09,206.88,40.53334686]
[1734555534156,34.66695769,207.06,206.88,40.53334686]
[1734555534357,2.4166,207.03,206.95,2.4175]
[1734555534958,34.66695769,207.02,206.93,2.4178]
[1734555535357,34.66695769,207.02,206.88,5.86638917]
[1734555535558,2.4168,207.01,206.88,5.86638917]
[1734555536260,34.66695769,207.02,206.84,34.66695769]
[1734555536757,34.66695769,207.02,206.92,2.4178]
[1734555536958,2.4171,206.99,206.84,34.66695769]
[1734555537159,34.66695769,207.02,206.86,5.83356086]
[1734555537358,2.4172,206.98,206.92,2.4178]
[1734555537755,34.66695769,207.02,206.86,5.83356086]
[1734555537951,34.66695769,207.02,206.84,34.66695769]
[1734555538461,2.4173,206.97,206.91,2.418]
[1734555539057,2.4172,206.98,206.92,2.4178]
[1734555539359,34.66695769,207.02,206.85,5.6675841]
[1734555539755,2.4173,206.97,206.91,2.4179]
[1734555539962,34.66695769,207.02,206.85,5.6675841]
[1734555540357,34.66695769,207.02,206.93,2.4177]
[1734555540559,34.66695769,207.02,206.85,5.6675841]
[1734555540860,2.4174,206.97,206.85,5.6675841]
[1734555541755,34.66695769,207.02,206.85,5.6675841]
[1734555541960,34.66695769,206.98,206.89,2.4181]
[1734555542157,34.66695769,206.94,206.79,9.2994]
[1734555542761,34.66695769,207.0,206.8,35.55558743]
[1734555542962,34.66695769,207.0,206.81,0.88862974]
[1734555543162,2.4172,206.99,206.92,2.4178]
[1734555543357,55.28,207.07,206.88,34.66695769]
[1734555543358,34.66695769,207.04,206.88,34.66695769]
[1734555543758,34.66695769,207.04,206.89,2.9663]
[1734555544164,2.4166,207.03,206.97,2.4173]
[1734555544359,34.66695769,207.12,206.92,34.66695769]
[1734555544563,34.66695769,207.12,206.96,34.66695769]
[1734555544770,37.08255769,207.12,206.96,34.66695769]
[1734555544960,34.66695769,207.12,206.96,34.66695769]
[1734555545265,130.84703029,207.14,206.96,34.66695769]
[1734555545765,130.84703029,207.14,207.1,2.4157]
[1734555545964,130.84703029,207.14,206.96,34.66695769]
[1734555546165,34.66695769,207.16,206.97,0.8879644]
[1734555546366,34.66695769,207.16,207.1,2.4158]
[1734555546567,34.66695769,207.16,207.0,34.66695769]
[1734555546568,130.84703029,207.21,207.08,34.66695769]
[1734555546766,130.84703029,207.21,207.14,2.4152]
[1734555547062,130.84703029,207.21,207.12,34.66695769]
[1734555547268,130.84703029,207.25,207.12,34.66695769]
[1734555547568,34.66695769,207.21,207.06,6.3818]
[1734555547768,34.66695769,207.21,207.05,5.86735874]
[1734555548665,2.4144,207.22,207.11,2.4157]
[1734555548865,34.66695769,207.25,207.05,5.86735874]
[1734555549066,34.66695769,207.21,207.05,5.86735874]
[1734555550064,34.66695769,207.25,207.07,34.66695769]
[1734555550465,34.66695769,207.21,207.05,5.86735874]
[1734555550770,34.66695769,207.21,207.09,2.4158]
[1734555550771,2.4149,207.18,207.09,2.4158]
[1734555551070,2.4149,207.18,207.1,2.4158]
[1734555551271,34.66695769,207.21,207.05,5.86735874]
[1734555551469,34.66695769,207.25,207.07,34.66695769]
[1734555551666,34.66695769,207.25,207.13,2.4154]
[1734555551866,34.66695769,207.25,207.07,34.66695769]
[1734555552074,34.66695769,207.21,207.05,5.86735874]
[1734555552573,34.66695769,207.25,207.07,34.66695769]
[1734555552965,2.4149,207.18,207.07,34.66695769]
[1734555553167,2.4149,207.18,207.05,5.86735874]
[1734555553469,130.84703029,207.26,207.02,6.3818]
[1734555553470,2.4155,207.13,207.02,6.3818]
[1734555553665,34.66695769,207.17,207.04,5.83896273]
[1734555553868,34.66695769,207.17,207.06,2.4162]
[1734555554067,2.4156,207.12,207.04,5.83896273]
[1734555554375,2.4156,207.12,207.02,6.3818]
[1734555554674,2.4158,207.1,207.0,5.68648064]
[1734555554877,34.66695769,207.13,206.91,8.954]
[1734555555078,55.24,207.19,206.72,96.0]
[1734555555079,2.4168,207.02,206.93,5.69807623]
[1734555555275,34.66695769,207.05,206.84,43.62095769]
[1734555555473,34.66695769,207.05,206.88,34.66695769]
[1734555555673,34.66695769,207.09,206.9,5.73170346]
[1734555556074,34.66695769,207.02,206.84,43.62095769]
[1734555556271,5.78272409,207.1,206.97,34.66695769]
[1734555556678,133.36173678,207.11,206.97,34.66695769]
[1734555557174,2.4159,207.09,206.97,34.66695769]
[1734555557373,40.44422271,207.11,206.9,34.66695769]
[1734555557869,2.4166,207.03,206.9,34.66695769]
[1734555558069,5.77726502,207.11,206.94,34.66695769]
[1734555558370,5.77726502,207.11,206.98,34.66695769]
[1734555558371,2.4159,207.09,206.98,34.66695769]
[1734555558678,133.36173678,207.16,207.02,34.66695769]
[1734555558872,2.4154,207.13,207.04,2.4164]
[1734555559280,133.36173678,207.16,207.02,34.66695769]
[1734555559778,34.66695769,207.16,206.97,34.66695769]
[1734555560077,34.66695769,207.12,206.93,34.66695769]
[1734555560269,5.94271743,207.18,206.93,34.66695769]
[1734555560468,34.66695769,207.15,206.93,34.66695769]
[1734555560668,34.66695769,207.15,206.92,5.93981826]
[1734555560669,34.66695769,207.15,206.97,34.66695769]
[1734555560878,5.94271743,207.18,207.09,2.4158]
[1734555560879,2.415,207.17,207.09,2.4158]
[1734555561074,5.94271743,207.18,207.05,34.66695769]
[1734555561279,133.36173678,207.19,207.07,34.66695769]
[1734555561477,139.14152089,207.19,207.02,6.0714]
[1734555561680,139.14152089,207.19,207.05,34.66695769]
[1734555561876,5.77978411,207.19,207.05,34.66695769]
[1734555562075,133.36173678,207.26,207.05,34.66695769]
[1734555562076,5.77398577,207.25,207.09,34.66695769]
[1734555562278,5.77398577,207.25,207.05,40.56328841]
[1734555562475,2.4151,207.16,206.88,55.24]
[1734555562782,34.66695769,207.17,206.98,34.66695769]
[1734555562984,300.06390776,206.96,206.78,32.78660002]
[1734555563176,300.06390776,206.88,206.85,34.66695769]
[1734555563376,34.66695769,207.09,206.87,5.77885761]
[1734555563572,34.66695769,207.09,206.89,34.66695769]
[1734555563573,2.4163,207.06,206.89,34.66695769]
[1734555563882,133.33464477,207.03,206.93,34.66695769]
[1734555564082,179.45075415,207.05,206.93,34.66695769]
[1734555564472,133.33464477,207.04,206.93,34.66695769]
[1734555564777,46.11610938,207.04,206.87,5.77885761]
[1734555566684,34.66695769,207.0,206.79,34.66695769]
[1734555566873,34.66695769,206.95,206.79,34.66695769]
[1734555567081,2.4178,206.93,206.83,2.4189]
[1734555567282,34.66695769,206.9,206.81,5.8063231]
[1734555567584,34.66695769,206.82,206.61,34.66695769]
[1734555567883,34.66695769,206.81,206.67,5.80516253]
[1734555568077,5.73146645,206.84,206.67,5.80516253]
[1734555568475,5.73146645,206.84,206.71,2.4203]
[1734555568476,2.4191,206.82,206.71,2.4203]
[1734555568675,1.0,206.89,206.67,5.80516253]
[1734555568676,1.0,206.89,206.69,34.66695769]
[1734555568878,1.0,206.89,206.73,34.66695769]
[1734555569078,6.736689,206.89,206.69,34.66695769]
[1734555569587,1.0,206.89,206.73,34.66695769]
[1734555569986,3.0214,206.99,206.7,6.245]
[1734555569987,36.43066719,206.95,206.76,36.43066719]
[1734555570883,36.43066719,206.95,206.82,5.79539776]
[1734555571084,36.43066719,206.91,206.72,36.43066719]
[1734555571285,2.4182,206.9,206.72,36.43066719]
[1734555571480,36.43066719,206.91,206.8,5.94871823]
[1734555571686,2.4177,206.94,206.84,2.4188]
[1734555571886,2.4177,206.94,206.8,5.94871823]
[1734555572088,36.43066719,206.95,206.8,5.94871823]
[1734555572379,36.43066719,206.91,206.8,5.94871823]
[1734555572986,2.4181,206.9,206.83,2.4189]
[1734555573182,36.43066719,206.95,206.8,5.94871823]
[1734555573685,39.45206719,206.99,206.84,36.43066719]
[1734555573890,36.43066719,207.03,206.85,3.2029]
[1734555574188,5.77543881,207.03,206.88,36.43066719]
[1734555574390,42.206106,207.03,206.88,36.43066719]
[1734555574691,36.43066719,207.03,206.88,36.43066719]
[1734555574887,36.43066719,207.11,206.92,36.43066719]
[1734555575096,316.0561235,207.15,206.96,36.43066719]
[1734555575288,316.0561235,207.15,206.97,6.3197]
[1734555575688,318.94156305,207.15,206.97,6.3197]
[1734555576786,1.0,207.14,206.97,6.3197]
[1734555577190,36.43066719,207.11,206.97,6.3197]
[1734555577595,2.4162,207.07,206.99,2.417]
[1734555577788,1.0,207.14,206.97,6.3197]
[1734555577994,36.43066719,207.11,206.97,6.3197]
[1734555578695,1.0,207.14,206.97,6.3197]
[1734555578991,2.4156,207.12,207.0,36.43066719]
[1734555579197,1.0,207.14,207.0,36.43066719]
[1734555579493,3.4154,207.14,207.07,2.4161]
[1734555579688,1.0,207.14,207.0,36.43066719]
[1734555579893,1.0,207.14,206.97,6.3197]
[1734555580396,1.0,207.14,207.02,36.37268885]
[1734555580992,1.0,207.14,207.03,3.2182]
[1734555582187,2.4157,207.11,207.03,3.2182]
[1734555582392,1.0,207.14,206.98,36.37268885]
[1734555582593,1.0,207.14,206.99,3.2182]
[1734555582995,36.37268885,207.12,206.99,3.2182]
[1734555583195,1.0,207.14,206.99,3.2182]
[1734555583592,276.69665631,207.15,207.02,36.37268885]
[1734555583794,276.69665631,207.15,207.08,2.4159]
[1734555583996,276.69665631,207.15,207.09,3.2342]
[1734555584498,279.11185631,207.15,207.05,2.4162]
[1734555584695,279.11185631,207.15,207.0,3.2342]
[1734555584696,276.69665631,207.15,207.0,3.2342]
[1734555585096,36.37268885,207.12,207.0,3.2342]
[1734555585298,276.69665631,207.15,207.0,3.2342]
[1734555586000,36.37268885,207.13,207.0,3.2342]
[1734555586196,36.37268885,207.13,206.98,5.93285951]
[1734555586396,36.37268885,207.09,206.9,36.37268885]
[1734555587001,36.37268885,207.05,206.86,36.37268885]
[1734555587199,1.0,207.08,206.84,9.1174]
[1734555587397,36.37268885,206.99,206.84,5.9685]
[1734555587800,2.4179,206.92,206.85,2.4187]
[1734555588001,1.0,206.98,206.84,5.9685]
[1734555588398,2.4175,206.95,206.84,5.9685]
[1734555588603,5.92264248,206.97,206.84,5.9685]
[1734555588804,2.4178,206.93,206.86,2.4185]
[1734555589109,36.37268885,206.95,206.78,36.37268885]
[1734555589300,2.419,206.82,206.75,2.4198]
[1734555589505,36.37268885,206.87,206.71,6.2178]
[1734555589702,36.37268885,206.87,206.71,3.0498]
[1734555590406,1.0,206.86,206.71,6.0503]
[1734555591107,5.89303797,206.83,206.66,36.37268885]
[1734555591305,42.26572682,206.83,206.66,36.37268885]
[1734555591502,42.26572682,206.83,206.66,38.79348885]
[1734555591708,42.26572682,206.83,206.66,36.37268885]
[1734555592003,1.0,206.82,206.66,36.37268885]
[1734555592198,2.4197,206.77,206.66,36.37268885]
[1734555592403,1.0,206.82,206.66,36.37268885]
[1734555592707,1.0,206.82,206.68,2.4206]
[1734555593006,1.0,206.82,206.64,5.68290403]
[1734555593303,2.42,206.74,206.67,2.4208]
[1734555593504,2.42,206.74,206.64,5.68290403]
[1734555594100,3.9694,206.82,206.64,5.68290403]
[1734555594298,36.37268885,206.79,206.59,6.0503]
[1734555594503,36.37268885,206.75,206.59,6.0503]
[1734555594704,2.4206,206.69,206.61,2.4215]
[1734555594909,1.0,206.78,206.62,36.37268885]
[1734555595302,1.0,206.78,206.59,6.0503]
[1734555595506,1.0,206.78,206.71,36.37268885]
[1734555595807,200.04260518,206.94,206.75,36.37268885]
[1734555596105,101.02654477,206.9,206.86,36.37268885]
[1734555596301,155.52420596,206.92,206.9,2.4181]
[1734555596503,0.4312,207.08,206.83,36.37268885]
[1734555596704,0.4312,207.08,206.99,36.37268885]
[1734555596913,5.4425,207.14,207.03,36.37268885]
[1734555597208,0.73644,207.22,207.11,36.37268885]
[1734555597401,0.73644,207.22,207.12,2.4155]
[1734555597601,195.99346489,207.15,207.11,36.37268885]
[1734555597806,99.16276862,207.15,207.11,36.37268885]
[1734555598002,5.62454858,207.15,207.14,2.4153]
[1734555598206,0.73644,207.22,207.13,5.69190198]
[1734555598412,0.73644,207.22,207.21,2.4145]
[1734555598612,0.73644,207.22,207.18,36.37268885]
[1734555598908,2.4147,207.2,207.1,36.37268885]
[1734555599109,0.73644,207.22,207.12,5.65923797]
[1734555599707,0.73644,207.22,207.12,42.03192682]
[1734555600109,36.37268885,207.25,207.19,131.7982804]
[1734555600307,35.11194691,207.25,207.19,122.0660804]
[1734555600503,42.57058885,207.29,207.19,122.0660804]
[1734555600707,36.37268885,207.25,207.21,6.59086338]
[1734555600902,1.0,207.28,207.18,47.85960711]
[1734555601112,2.4142,207.24,207.18,47.85960711]
[1734555601311,36.37268885,207.26,207.14,79.09036067]
[1734555601507,36.37268885,207.22,207.14,79.09036067]
[1734555601709,36.37268885,207.18,207.14,79.09036067]
[1734555602110,36.37268885,207.26,207.07,36.37268885]
[1734555602308,1.0,207.28,207.15,36.37268885]
[1734555602608,36.37268885,207.35,207.19,36.37268885]
[1734555602808,1.0,207.23,207.19,36.37268885]
[1734555603012,36.37268885,207.35,207.19,36.37268885]
[1734555603510,36.37268885,207.27,207.12,3.0379]
[1734555603708,36.37268885,207.31,207.12,3.0379]
[1734555603904,6.68532108,207.34,207.15,5.76359135]
[1734555604111,1.0,207.34,207.18,36.37268885]
[1734555604312,1.0,207.34,207.19,2.9986]
[1734555604906,1.0,207.34,207.22,2.4143]
[1734555605210,1.0,207.34,207.15,5.76359135]
[1734555605211,36.37268885,207.31,207.15,5.76359135]
[1734555605406,2.4145,207.22,207.08,2.416]
[1734555605610,36.37268885,207.23,207.02,36.37268885]
[1734555605912,2.4144,207.22,207.1,2.4157]
[1734555606113,36.37268885,207.27,207.1,5.79334337]
[1734555606414,2.4144,207.22,207.1,5.79334337]
[1734555606706,36.37268885,207.23,207.1,5.79334337]
[1734555606707,1.0,207.26,207.1,42.16603222]
[1734555606907,1.0,207.26,207.14,36.37268885]
[1734555607112,36.37268885,207.32,207.15,9.2294]
[1734555607614,36.37268885,207.41,207.22,36.37268885]
[1734555607814,38.78488885,207.41,207.22,36.37268885]
[1734555608014,36.37268885,207.37,207.21,5.79855686]
[1734555608213,36.37268885,207.28,207.15,9.2294]
[1734555608609,36.37268885,207.33,207.15,9.2294]
[1734555609315,36.37268885,207.25,207.1,5.79334337]
[1734555609515,1.0,207.32,207.13,36.37268885]
[1734555609715,1.0,207.32,207.14,6.381]
[1734555610313,36.37268885,207.25,207.1,5.79334337]
[1734555610512,2.4148,207.19,207.1,5.79334337]
[1734555610818,36.37268885,207.17,207.01,36.37268885]
[1734555611013,36.37268885,207.21,207.05,36.37268885]
[1734555611318,1.0,207.24,207.06,5.76099409]
[1734555611513,36.37268885,207.33,207.13,36.37268885]
[1734555611719,131.67979571,207.36,207.21,36.37268885]
[1734555612017,131.67979571,207.36,207.14,9.442]
[1734555612018,65.44059571,207.36,207.35,36.37268885]
[1734555612219,131.27506008,207.46,207.35,36.37268885]
[1734555612515,131.27506008,207.46,207.43,36.37268885]
[1734555612720,131.27506008,207.46,207.35,36.37268885]
[1734555613325,36.37268885,207.52,207.31,36.37268885]
[1734555613513,36.37268885,207.52,207.3,5.75461682]
[1734555613514,36.37268885,207.44,207.3,5.75461682]
[1734555613718,6.0417,207.43,207.3,5.75461682]
[1734555614019,36.37268885,207.4,207.32,5.15948395]
[1734555614224,36.37268885,207.36,207.32,5.15948395]
[1734555614722,91.59268885,207.35,207.27,0.29202347]
[1734555614918,36.37268885,207.27,207.21,78.37847106]
[1734555615123,56.22,207.35,207.21,78.37847106]
[1734555615124,36.37268885,207.22,207.21,78.37847106]
[1734555615315,56.22,207.35,207.21,78.37847106]
[1734555615521,56.22,207.35,207.19,5.69187961]
[1734555615522,92.59268885,207.35,207.19,5.69187961]
[1734555615919,37.37268885,207.35,207.16,36.37268885]
[1734555616123,37.37268885,207.35,207.17,5.88251672]
[1734555616321,43.17350395,207.35,207.17,5.88251672]
[1734555616719,36.37268885,207.26,207.11,3.1514]
[1734555616921,36.37268885,207.26,207.14,5.91844226]
[1734555617123,36.37268885,207.26,207.11,3.1514]
[1734555617425,1.0,207.25,207.14,36.37268885]
[1734555617720,5.8008151,207.35,207.18,36.37268885]
[1734555617920,36.37268885,207.38,207.18,36.37268885]
[1734555618123,36.37268885,207.42,207.22,36.37268885]
[1734555618327,6.0417,207.43,207.21,5.93322803]
[1734555618328,36.37268885,207.38,207.21,5.93322803]
[1734555618527,36.37268885,207.34,207.21,5.93322803]
[1734555618728,36.37268885,207.3,207.14,36.37268885]
[1734555619029,36.37268885,207.3,207.12,3.2399]
[1734555619228,36.37268885,207.25,207.11,3.1514]
[1734555619824,2.4149,207.2,207.09,2.4161]
[1734555620020,2.9815,207.24,207.06,36.37268885]
[1734555620226,36.37268885,207.21,207.02,36.37268885]
[1734555620427,36.37268885,207.17,207.0,3.1152]
[1734555620622,36.37268885,207.13,206.94,36.37268885]
[1734555620820,2.4168,207.07,206.98,2.4177]
[1734555621025,36.37268885,207.15,206.98,36.37268885]
[1734555621423,36.37268885,207.11,206.95,5.79993613]
[1734555621628,1.0,207.14,206.98,36.37268885]
[1734555621822,2.4163,207.11,207.02,2.4173]
[1734555622021,1.0,207.14,206.98,36.37268885]
[1734555622226,2.9815,207.24,207.06,36.37268885]
[1734555622421,2.9815,207.24,207.1,36.37268885]
[1734555622635,36.37268885,207.3,207.1,36.37268885]
[1734555622931,42.04395329,207.26,207.06,36.37268885]
[1734555623133,36.37268885,207.22,207.06,36.37268885]
[1734555623330,5.67126444,207.26,207.06,36.37268885]
[1734555623528,36.37268885,207.24,207.06,36.37268885]
[1734555623832,36.37268885,207.2,207.02,36.37268885]
[1734555624029,5.67126444,207.26,207.09,5.82150045]
[1734555624335,1.0,207.23,207.14,36.37268885]
[1734555624527,36.37268885,207.4,207.18,36.37268885]
[1734555624729,36.37268885,207.35,207.18,36.37268885]
[1734555625026,36.37268885,207.43,207.22,42.18331992]
[1734555625231,36.37268885,207.43,207.26,36.37268885]
[1734555625427,36.37268885,207.47,207.39,2.4133]
[1734555625731,36.37268885,207.51,207.35,36.37268885]
[1734555625927,2.988,207.55,207.35,36.37268885]
[1734555625928,39.36068885,207.55,207.35,36.37268885]
[1734555626132,36.37268885,207.55,207.35,36.37268885]
[1734555626431,36.37268885,207.55,207.42,5.73468647]
[1734555626635,2.988,207.58,207.49,2.4118]
[1734555626827,369.10681829,207.54,207.38,36.37268885]
[1734555627132,160.89271567,207.54,207.46,5.73352701]
[1734555627328,121.55118538,207.53,207.33,36.37268885]
[1734555627526,36.37268885,207.45,207.37,5.86628512]
[1734555627730,36.37268885,207.49,207.29,36.37268885]
[1734555628026,36.37268885,207.53,207.33,36.37268885]
[1734555628337,130.34981658,207.48,207.42,36.37268885]
[1734555628633,16.16468636,207.48,207.47,2.4121]
[1734555628834,16.16468636,207.48,207.36,42.23278004]
[1734555629132,123.03560609,207.57,207.36,42.23278004]
[1734555629133,36.37268885,207.53,207.36,42.23278004]
[1734555629330,36.37268885,207.49,207.36,5.86009119]
[1734555629728,36.37268885,207.45,207.36,8.27359119]
[1734555629932,123.03560609,207.57,207.36,5.86009119]
[1734555630133,36.37268885,207.5,207.36,5.86009119]
[1734555631032,36.37268885,207.46,207.36,5.86009119]
[1734555631528,36.37268885,207.46,207.22,36.37268885]
[1734555631836,6.1911,207.52,206.98,88.69238407]
[1734555631837,36.37268885,207.38,207.28,5.7520214]
[1734555632134,36.37268885,207.46,207.3,36.37268885]
[1734555632639,36.37268885,207.42,207.28,5.7520214]
[1734555633024,36.37268885,207.38,207.29,2.4143]
[1734555633224,2.4129,207.42,207.28,5.7520214]
[1734555633225,36.37268885,207.42,207.28,5.7520214]
[1734555634337,6.1911,207.52,207.28,5.7520214]
[1734555634633,36.37268885,207.46,207.28,5.7520214]
[1734555634933,36.37268885,207.46,207.37,2.4134]
[1734555635131,36.37268885,207.46,207.28,5.7520214]
[1734555635334,36.37268885,207.51,207.3,36.37268885]
[1734555635533,36.37268885,207.47,207.35,2.4136]
[1734555635827,36.37268885,207.43,207.28,5.7520214]
[1734555636028,36.37268885,207.39,207.28,5.7520214]
[1734555636538,36.37268885,207.39,207.24,3.2311]
[1734555636733,3.0824,207.38,207.27,5.75658706]
[1734555636934,3.0824,207.38,207.31,2.414]
[1734555637134,3.0824,207.38,207.27,5.75658706]
[1734555637938,3.0824,207.38,207.32,2.4141]
[1734555638343,36.37268885,207.39,207.27,5.75658706]
[1734555638841,36.37268885,207.31,207.14,39.45048885]
[1734555639042,3.196,207.38,207.26,2.4148]
[1734555639043,36.37268885,207.35,207.26,2.4148]
[1734555639233,36.37268885,207.39,207.22,36.37268885]
[1734555639542,36.37268885,207.51,207.44,2.4127]
[1734555639833,36.37268885,207.51,207.34,36.37268885]
[1734555640039,36.37268885,207.51,207.39,2.4133]
[1734555640230,36.37268885,207.51,207.34,36.37268885]
[1734555640431,36.37268885,207.55,207.38,36.37268885]
[1734555640636,36.37268885,207.55,207.38,5.79899661]
[1734555640940,36.37268885,207.51,207.38,5.79899661]
[1734555641939,2.4121,207.5,207.38,5.79899661]
[1734555642139,36.37268885,207.51,207.38,5.79899661]
[1734555642537,36.37268885,207.55,207.38,5.79899661]
[1734555642942,2.4116,207.54,207.44,2.4127]
[1734555643147,36.37268885,207.55,207.38,5.79899661]
[1734555643443,2.4123,207.48,207.39,2.4132]
[1734555643748,36.37268885,207.43,207.3,5.75556494]
[1734555643950,3.2448,207.42,207.33,2.4139]
[1734555644148,3.2448,207.42,207.3,5.75556494]
[1734555644347,36.37268885,207.51,207.33,36.37268885]
[1734555645150,36.37268885,207.51,207.31,3.2335]
[1734555645649,36.37268885,207.47,207.39,5.68332811]
[1734555645854,36.37268885,207.51,207.39,5.68332811]
[1734555646755,36.37268885,207.55,207.39,5.68332811]
[1734555647153,36.37268885,207.55,207.4,2.4131]
[1734555647356,36.37268885,207.46,207.27,19.76504246]
[1734555647557,36.37268885,207.5,207.3,36.37268885]
[1734555647757,36.37268885,207.5,207.34,36.37268885]
[1734555648259,2.4118,207.53,207.36,5.76913919]
[1734555648554,36.37268885,207.54,207.38,36.37268885]
[1734555648758,38.78428885,207.54,207.42,2.4129]
[1734555648956,36.37268885,207.54,207.38,36.37268885]
[1734555649153,6.2252,207.56,207.36,5.76913919]
[1734555649457,36.37268885,207.42,207.24,19.76504246]
[1734555649661,6.276,207.41,207.31,5.72628041]
[1734555649858,2.4132,207.4,207.33,2.4139]
[1734555650154,6.276,207.41,207.31,5.72628041]
[1734555650554,36.37268885,207.37,207.24,19.76504246]
[1734555650755,36.37268885,207.33,207.14,36.37268885]
[1734555650954,36.37268885,207.29,207.14,36.37268885]
[1734555651659,36.37268885,207.29,207.16,5.93674533]
[1734555651858,6.1269,207.28,207.16,5.93674533]
[1734555652062,2.4151,207.25,207.17,2.4159]
[1734555652252,6.1269,207.28,207.16,5.93674533]
[1734555652858,2.415,207.25,207.19,2.4157]
[1734555653060,6.1269,207.28,207.16,5.93674533]
[1734555653262,36.37268885,207.25,207.06,36.37268885]
[1734555653461,36.37268885,207.21,207.02,36.37268885]
[1734555653656,36.37268885,207.21,206.99,3.2337]
[1734555654261,36.37268885,207.21,207.07,5.73399454]
[1734555654456,36.37268885,207.25,207.07,5.73399454]
[1734555654657,2.923,207.27,207.07,5.73399454]
[1734555654658,36.37268885,207.16,207.07,5.73399454]
[1734555654861,2.4173,207.06,206.98,2.4181]
[1734555655066,36.37268885,207.04,206.86,59.13243131]
[1734555655462,61.2612,207.15,206.96,5.84941685]
[1734555655463,36.37268885,207.09,206.96,5.84941685]
[1734555655662,36.37268885,207.05,206.96,5.84941685]
[1734555656070,36.37268885,207.09,207.01,2.4177]
[1734555656267,36.37268885,207.09,206.96,5.84941685]
[1734555657071,36.37268885,207.13,207.01,2.4178]
[1734555657270,36.37268885,207.13,206.96,5.84941685]
[1734555657666,36.37268885,207.13,207.04,2.4175]
[1734555657868,36.37268885,207.13,206.96,5.84941685]
[1734555658166,36.37268885,207.09,206.96,5.84941685]
[1734555658765,36.37268885,207.09,207.0,2.4179]
[1734555659066,36.37268885,207.09,206.96,5.84941685]
[1734555659269,36.37268885,207.13,206.96,5.84941685]
[1734555659567,6.0812,207.15,206.98,36.37268885]
[1734555659971,36.37268885,207.13,207.03,2.4176]
[1734555660165,36.37268885,207.13,206.97,3.0583]
[1734555660368,36.37268885,207.09,206.96,5.84941685]
[1734555660571,36.37268885,207.05,206.87,6.0923]
[1734555660765,36.37268885,207.09,206.87,3.034]
[1734555660766,36.37268885,207.01,206.87,3.034]
[1734555660970,36.37268885,206.97,206.79,3.0583]
[1734555661271,36.37268885,206.93,206.79,6.0302]
[1734555661465,36.37268885,206.93,206.84,2.4198]
[1734555661662,36.37268885,206.89,206.79,2.9719]
[1734555661867,36.37268885,206.89,206.74,32.83549242]
[1734555662170,36.37268885,206.85,206.77,5.7310223]
[1734555662369,36.37268885,206.81,206.64,3.0405]